bitfinex-derivatives/quotes_BTCF0:USTF0_20241226
["timestamp","ask_amount","ask_price","bid_price","bid_amount"]
[1735213173124,0.09350938,95964.0,95963.0,0.002]
[1735213173923,0.09850938,95964.0,95963.0,0.001]
[1735213174119,0.10750938,95964.0,95963.0,0.002]
[1735213174319,0.014,95964.0,95963.0,0.002]
[1735213193433,0.014,95964.0,95931.0,0.31089126]
[1735213193434,0.052169,95952.0,95946.0,0.18497181]
[1735213193619,0.052172,95947.0,95946.0,0.18497181]
[1735213195233,0.052177,95937.0,95936.0,0.00156345]
[1735213196723,0.052177,95937.0,95936.0,0.00146345]
[1735213196922,0.052173,95944.0,95936.0,0.00146345]
[1735213197123,0.15614061,95946.0,95936.0,0.00146345]
[1735213197124,0.15614061,95946.0,95943.0,0.052173]
[1735213197440,0.15614061,95948.0,95947.0,0.052172]
[1735213198123,0.15614061,95948.0,95947.0,0.052072]
[1735213198903,0.09365428,95952.0,95941.0,0.18497181]
[1735213198931,0.09365428,95952.0,95950.0,0.05217]
[1735213199536,0.15614061,95963.0,95962.0,0.052163]
[1735213200447,0.15614061,95969.0,95968.0,0.05216]
[1735213201750,0.009,95969.0,95968.0,0.05316]
[1735213201937,0.015,95969.0,95968.0,0.05416]
[1735213202540,0.15614061,95982.0,95976.0,0.052155]
[1735213202735,0.15614061,95982.0,95977.0,0.0312]
[1735213202946,0.23848628,95988.0,95977.0,0.0312]
[1735213202947,0.05271001,95988.0,95977.0,0.0312]
[1735213203141,0.05215,95988.0,95977.0,0.0312]
[1735213203742,0.007,95982.0,95977.0,0.0312]
[1735213203932,0.007,95982.0,95977.0,0.083355]
[1735213204142,0.007,95982.0,95977.0,0.0322]
[1735213204334,0.007,95982.0,95981.0,0.052153]
[1735213204543,0.06815,95988.0,95981.0,0.052153]
[1735213205042,0.05915,95988.0,95981.0,0.052153]
[1735213205247,0.009,95982.0,95981.0,0.052153]
[1735213205543,0.016,95982.0,95981.0,0.052053]
[1735213205744,0.007,95982.0,95981.0,0.053053]
[1735213206839,0.007,95982.0,95981.0,0.001]
[1735213207050,0.009,95988.0,95981.0,0.002]
[1735213207051,0.052152,95984.0,95981.0,0.002]
[1735213207248,0.009,95982.0,95981.0,0.002]
[1735213207740,0.063153,95982.0,95981.0,0.002]
[1735213207948,0.05216,95969.0,95968.0,0.18497181]
[1735213208344,0.05216,95969.0,95968.0,0.18487181]
[1735213209143,0.0332,95977.0,95952.0,0.052169]
[1735213209359,0.10436179,95963.0,95942.0,0.0643]
[1735213209542,0.10436179,95963.0,95953.0,0.01238591]
[1735213209543,0.052167,95956.0,95953.0,0.01238591]
[1735213209841,0.052167,95956.0,95953.0,0.00156318]
[1735213210038,0.052167,95956.0,95953.0,0.00146318]
[1735213210941,0.054167,95956.0,95953.0,0.00146318]
[1735213211548,0.059167,95956.0,95953.0,0.00146318]
[1735213212248,0.059167,95956.0,95953.0,0.00136318]
[1735213212642,0.052168,95954.0,95953.0,0.00136318]
[1735213213954,0.059168,95954.0,95953.0,0.00136318]
[1735213214834,0.007,95954.0,95940.0,0.01096118]
[1735213215038,0.007,95954.0,95932.0,0.05218]
[1735213215039,0.052173,95945.0,95932.0,0.05218]
[1735213215343,0.052174,95943.0,95935.0,0.01686128]
[1735213215557,0.052174,95943.0,95935.0,0.00618493]
[1735213217052,0.052174,95943.0,95935.0,0.01788493]
[1735213217644,0.052174,95943.0,95935.0,0.02088493]
[1735213218644,0.052169,95952.0,95935.0,0.02088493]
[1735213218852,0.10436179,95950.0,95936.0,0.052177]
[1735213219055,0.10436179,95950.0,95935.0,0.02088493]
[1735213219357,0.10436179,95950.0,95943.0,0.052173]
[1735213221262,0.10536179,95950.0,95943.0,0.052173]
[1735213224757,0.001,95950.0,95949.0,0.05217]
[1735213225852,0.003,95950.0,95949.0,0.05217]
[1735213226980,0.006,95950.0,95949.0,0.05217]
[1735213228061,0.006,95950.0,95949.0,0.06309367]
[1735213234272,0.006,95950.0,95940.0,0.10436179]
[1735213234657,0.006,95950.0,95944.0,0.052173]
[1735213235061,0.006,95950.0,95940.0,0.10436179]
[1735213235368,0.004,95950.0,95945.0,0.052172]
[1735213235567,0.004,95950.0,95940.0,0.11515145]
[1735213235770,0.004,95950.0,95948.0,0.052171]
[1735213236365,0.052168,95954.0,95948.0,0.052171]
[1735213236565,0.001,95950.0,95948.0,0.052171]
[1735213236969,0.004,95950.0,95948.0,0.052171]
[1735213237363,0.001,95950.0,95948.0,0.052171]
[1735213238063,0.004,95950.0,95948.0,0.052171]
[1735213241269,0.046168,95954.0,95948.0,0.052171]
[1735213241770,0.052168,95953.0,95948.0,0.052171]
[1735213243154,0.053168,95953.0,95948.0,0.052171]
[1735213243466,0.12464052,95951.0,95948.0,0.052171]
[1735213244871,0.12564052,95951.0,95948.0,0.052171]
[1735213245674,0.12464052,95950.0,95948.0,0.052171]
[1735213247070,0.12764052,95950.0,95948.0,0.052171]
[1735213248468,0.0305,95949.0,95948.0,0.052171]
[1735213248774,0.0305,95949.0,95942.0,0.24676601]
[1735213248966,0.052174,95943.0,95942.0,0.24676601]
[1735213249357,0.052174,95943.0,95942.0,0.19686601]
[1735213249868,0.052174,95943.0,95928.0,0.37471459]
[1735213249869,0.20831461,95943.0,95928.0,0.00072]
[1735213250101,0.05218,95933.0,95928.0,0.01044901]
[1735213250271,0.033,95932.0,95925.0,0.052183]
[1735213250664,0.05218,95931.0,95925.0,0.052183]
[1735213251066,0.08448,95931.0,95925.0,0.052183]
[1735213251271,0.08448,95931.0,95928.0,0.006]
[1735213252769,0.08548,95931.0,95925.0,0.062183]
[1735213253268,0.08548,95931.0,95925.0,0.055183]
[1735213253473,0.08448,95931.0,95928.0,0.006]
[1735213253684,0.052181,95929.0,95928.0,0.006]
[1735213253879,0.052181,95929.0,95928.0,0.002]
[1735213254877,0.052181,95929.0,95928.0,0.008]
[1735213268979,0.052181,95929.0,95901.0,0.0333]
[1735213268980,0.052181,95929.0,95903.0,0.052195]
[1735213269185,0.052192,95909.0,95903.0,0.052195]
[1735213269388,0.052192,95909.0,95900.0,0.1]
[1735213269389,0.10436179,95918.0,95904.0,0.052195]
[1735213269577,0.052194,95906.0,95900.0,0.1]
[1735213270075,0.047194,95906.0,95900.0,0.1]
[1735213270487,0.047194,95906.0,95905.0,0.01056366]
[1735213270886,0.047194,95906.0,95905.0,0.01256366]
[1735213272086,0.13545351,95908.0,95873.0,0.0325]
[1735213272286,0.052205,95886.0,95883.0,0.052206]
[1735213272501,0.052205,95886.0,95876.0,0.05221]
[1735213272678,0.052205,95886.0,95873.0,0.0325]
[1735213272679,0.052205,95886.0,95885.0,0.04300202]
[1735213273189,0.052205,95886.0,95885.0,0.02270202]
[1735213273491,0.052205,95886.0,95885.0,0.012]
[1735213273687,0.052205,95886.0,95885.0,0.004]
[1735213273900,0.053205,95886.0,95885.0,0.008]
[1735213274189,0.053205,95886.0,95885.0,0.012]
[1735213275395,0.001,95886.0,95872.0,0.01085522]
[1735213275580,0.20872358,95882.0,95867.0,0.0327]
[1735213275887,0.052215,95868.0,95867.0,0.0327]
[1735213276391,0.052211,95876.0,95869.0,0.052214]
[1735213276583,0.052211,95876.0,95867.0,0.0327]
[1735213276782,0.052211,95876.0,95870.0,0.052213]
[1735213276982,0.052211,95876.0,95872.0,0.003]
[1735213277893,0.052212,95873.0,95872.0,0.003]
[1735213278785,0.001,95876.0,95867.0,0.0357]
[1735213278991,0.052214,95870.0,95867.0,0.0357]
[1735213279594,0.049214,95870.0,95867.0,0.0327]
[1735213280380,0.049214,95870.0,95867.0,0.0357]
[1735213282182,0.052214,95869.0,95867.0,0.0357]
[1735213283496,0.052214,95869.0,95867.0,0.0327]
[1735213283684,0.053214,95869.0,95867.0,0.0327]
[1735213288796,0.001,95869.0,95829.0,0.37399459]
[1735213288983,0.15658679,95850.0,95841.0,0.0648]
[1735213289188,0.052221,95857.0,95841.0,0.0648]
[1735213289399,0.001,95869.0,95841.0,0.3648]
[1735213289593,0.001,95869.0,95849.0,0.052225]
[1735213289792,0.053214,95869.0,95856.0,0.052221]
[1735213290089,0.053214,95869.0,95857.0,0.0316]
[1735213290295,0.052214,95869.0,95857.0,0.0316]
[1735213290487,0.10436179,95870.0,95858.0,0.0326]
[1735213290687,0.052215,95867.0,95859.0,0.0322]
[1735213291791,0.052215,95867.0,95859.0,0.0342]
[1735213292493,0.001,95867.0,95859.0,0.0342]
[1735213292689,0.05546179,95870.0,95859.0,0.0342]
[1735213292888,0.10373564,96493.0,95859.0,0.0342]
[1735213292889,0.18689629,95910.0,95860.0,0.10436179]
[1735213293097,0.15614061,95901.0,95885.0,0.10436179]
[1735213293391,0.052202,95891.0,95885.0,0.10436179]
[1735213293602,0.052205,95886.0,95870.0,0.10436179]
[1735213294102,0.052205,95886.0,95873.0,0.052211]
[1735213294892,0.052205,95886.0,95870.0,0.10436179]
[1735213295094,0.053205,95886.0,95870.0,0.10436179]
[1735213295291,0.001,95886.0,95881.0,0.052207]
[1735213295599,0.001,95886.0,95883.0,0.052206]
[1735213296697,0.004,95886.0,95883.0,0.052206]
[1735213297300,0.003,95886.0,95883.0,0.052206]
[1735213298094,0.006,95886.0,95883.0,0.052206]
[1735213299390,0.006,95886.0,95883.0,0.06261521]
[1735213300098,0.052208,95880.0,95871.0,0.0626]
[1735213300399,0.052209,95879.0,95872.0,0.052212]
[1735213302395,0.052209,95878.0,95872.0,0.052212]
[1735213302801,0.052209,95878.0,95872.0,0.053212]
[1735213309904,0.052209,95878.0,95874.0,0.052211]
[1735213310206,0.12467904,95884.0,95880.0,0.052208]
[1735213311597,0.052205,95885.0,95880.0,0.052208]
[1735213311906,0.002,95884.0,95880.0,0.052208]
[1735213313101,0.004,95884.0,95880.0,0.052208]
[1735213313514,0.002,95884.0,95880.0,0.052208]
[1735213314299,0.004,95884.0,95880.0,0.052208]
[1735213315898,0.004,95884.0,95872.0,0.052212]
[1735213316107,0.004,95884.0,95882.0,0.052207]
[1735213317005,0.002,95884.0,95882.0,0.052207]
[1735213317606,0.12467904,95887.0,95886.0,0.052205]
[1735213317804,0.052198,95900.0,95886.0,0.052205]
[1735213317805,0.12467904,95888.0,95886.0,0.052205]
[1735213319113,0.12467904,95888.0,95874.0,0.10436179]
[1735213319114,0.12467904,95890.0,95889.0,0.052203]
[1735213320514,0.006,95890.0,95889.0,0.052203]
[1735213320705,0.01,95890.0,95889.0,0.052203]
[1735213326419,0.01,95890.0,95889.0,0.29998063]
[1735213328909,0.01,95890.0,95889.0,0.052203]
[1735213330020,0.01,95890.0,95887.0,0.24777763]
[1735213330416,0.01,95890.0,95886.0,0.24777763]
[1735213331219,0.009,95890.0,95886.0,0.24777763]
[1735213331812,0.009,95890.0,95884.0,0.052205]
[1735213332028,0.009,95890.0,95887.0,0.18575877]
[1735213333015,0.007,95890.0,95884.0,0.23796377]
[1735213333215,0.007,95890.0,95885.0,0.052205]
[1735213333414,0.007,95890.0,95886.0,0.052204]
[1735213333617,0.008,95890.0,95886.0,0.052204]
[1735213334125,0.006,95890.0,95886.0,0.052204]
[1735213334333,0.006,95890.0,95887.0,0.18575877]
[1735213334722,0.0333,95889.0,95887.0,0.18575877]
[1735213336025,0.0333,95889.0,95886.0,0.052204]
[1735213336725,0.0363,95889.0,95882.0,0.01040384]
[1735213336930,0.0413,95889.0,95880.0,0.23796677]
[1735213337431,0.0403,95889.0,95880.0,0.23796677]
[1735213337826,0.0403,95889.0,95880.0,0.052208]
[1735213337827,0.09382608,95887.0,95880.0,0.052208]
[1735213338015,0.09382608,95887.0,95880.0,0.06251144]
[1735213338927,0.09382608,95886.0,95880.0,0.24827021]
[1735213340035,0.09582608,95886.0,95880.0,0.24827021]
[1735213340233,0.09382608,95885.0,95881.0,0.18575877]
[1735213341736,0.09582608,95885.0,95881.0,0.18575877]
[1735213342526,0.09782608,95885.0,95881.0,0.18575877]
[1735213345141,0.0641,95884.0,95881.0,0.18575877]
[1735213346224,0.0661,95884.0,95880.0,0.24827021]
[1735213346635,0.0681,95884.0,95880.0,0.24827021]
[1735213346936,0.0681,95884.0,95880.0,0.19606221]
[1735213347338,0.0661,95884.0,95880.0,0.19606221]
[1735213347547,0.0681,95884.0,95881.0,0.18575877]
[1735213349435,0.0661,95884.0,95881.0,0.18575877]
[1735213349641,0.0681,95884.0,95881.0,0.18575877]
[1735213350030,0.052207,95883.0,95881.0,0.18575877]
[1735213350545,0.052207,95883.0,95882.0,0.18575877]
[1735213351845,0.052208,95881.0,95874.0,0.18575877]
[1735213352943,0.052208,95881.0,95876.0,0.18575877]
[1735213353139,0.1772534,95881.0,95876.0,0.18575877]
[1735213353534,0.1782534,95881.0,95876.0,0.18575877]
[1735213354743,0.1782534,95881.0,95870.0,0.3628867]
[1735213354744,0.053208,95881.0,95877.0,0.18575877]
[1735213355942,0.052208,95880.0,95877.0,0.18575877]
[1735213357247,0.052208,95880.0,95879.0,0.18575877]
[1735213358550,0.053208,95880.0,95879.0,0.18575877]
[1735213358943,0.054208,95880.0,95879.0,0.18575877]
[1735213359246,0.053208,95880.0,95879.0,0.18575877]
[1735213359455,0.055208,95880.0,95879.0,0.18575877]
[1735213361459,0.055208,95880.0,95875.0,0.24777763]
[1735213362547,0.053208,95880.0,95875.0,0.24777763]
[1735213362748,0.054208,95880.0,95875.0,0.24777763]
[1735213363050,0.053208,95880.0,95875.0,0.001]
[1735213364154,0.1782534,95880.0,95876.0,0.24777763]
[1735213365352,0.1250454,95879.0,95876.0,0.24777763]
[1735213366449,0.1260454,95879.0,95876.0,0.24777763]
[1735213366650,0.1260454,95879.0,95875.0,0.24777763]
[1735213368353,0.1250454,95877.0,95875.0,0.001]
[1735213369446,0.1260454,95877.0,95875.0,0.001]
[1735213369648,0.001,95877.0,95875.0,0.001]
[1735213370859,0.1782554,95877.0,95875.0,0.001]
[1735213371047,0.1782554,95877.0,95876.0,6.983e-05]
[1735213372456,0.05321,95877.0,95876.0,6.983e-05]
[1735213374357,0.06393827,95877.0,95876.0,6.983e-05]
[1735213374762,0.06393827,95877.0,95856.0,0.18620083]
[1735213374763,0.31172827,95877.0,95856.0,0.18620083]
[1735213374944,0.052221,95857.0,95856.0,0.18620083]
[1735213375258,0.052221,95857.0,95855.0,0.18620083]
[1735213375452,0.0308,95856.0,95855.0,0.18620083]
[1735213375955,0.0278,95856.0,95855.0,0.18620083]
[1735213376152,0.0268,95856.0,95855.0,0.18620083]
[1735213376567,0.0268,95856.0,95855.0,0.08640083]
[1735213376856,0.0268,95856.0,95855.0,0.003]
[1735213377058,0.03744916,95856.0,95855.0,0.003]
[1735213377259,0.052231,95838.0,95837.0,0.24777763]
[1735213378758,0.053231,95838.0,95836.0,0.01078312]
[1735213378958,0.053231,95838.0,95833.0,0.052233]
[1735213380461,0.052232,95837.0,95833.0,0.052233]
[1735213381000,0.052233,95835.0,95827.0,0.052237]
[1735213382061,0.001,95837.0,95835.0,0.052232]
[1735213382260,0.09365884,95845.0,95842.0,0.052228]
[1735213382459,0.001,95835.0,95824.0,0.01193525]
[1735213382657,0.052235,95832.0,95824.0,0.01193525]
[1735213383458,0.001,95835.0,95824.0,0.01193525]
[1735213383861,0.001,95835.0,95831.0,0.052234]
[1735213384060,0.001,95835.0,95832.0,0.0305]
[1735213385568,0.001,95835.0,95833.0,0.0323]
[1735213386250,0.052233,95834.0,95833.0,0.0323]
[1735213386959,0.001,95835.0,95833.0,0.0323]
[1735213387164,0.04708784,95847.0,95833.0,0.0323]
[1735213387357,0.15684471,95865.0,95852.0,0.052223]
[1735213387358,0.052217,95864.0,95852.0,0.052223]
[1735213387551,0.1562847,95865.0,95854.0,0.15682717]
[1735213387767,0.1562847,95863.0,95855.0,0.0328]
[1735213388270,0.1562847,95863.0,95856.0,0.052221]
[1735213389062,0.1562847,95863.0,95855.0,0.0328]
[1735213389366,0.10460517,95900.0,95855.0,0.0328]
[1735213389367,0.1562847,95891.0,95855.0,0.34348853]
[1735213389664,0.1562847,95891.0,95870.0,0.10460517]
[1735213389867,0.052208,95880.0,95870.0,0.10460517]
[1735213390853,0.052209,95878.0,95856.0,0.0317]
[1735213391057,0.052209,95878.0,95855.0,0.0328]
[1735213391058,0.052221,95857.0,95855.0,0.0328]
[1735213391861,0.052226,95848.0,95846.0,0.00156488]
[1735213392186,0.0304,95847.0,95846.0,0.00156488]
[1735213392367,0.052228,95843.0,95842.0,0.24777763]
[1735213392763,0.052228,95843.0,95842.0,0.19787763]
[1735213392954,0.052235,95831.0,95830.0,0.00076]
[1735213393161,0.052236,95829.0,95828.0,0.01048652]
[1735213393665,0.052238,95825.0,95820.0,0.0307]
[1735213394362,0.001,95829.0,95818.0,0.24738263]
[1735213394580,0.052241,95819.0,95817.0,9.566e-05]
[1735213395073,0.048241,95819.0,95817.0,9.566e-05]
[1735213398169,0.049241,95819.0,95817.0,9.566e-05]
[1735213402175,0.059241,95819.0,95817.0,9.566e-05]
[1735213403773,0.055241,95819.0,95817.0,9.566e-05]
[1735213403975,0.060241,95819.0,95817.0,9.566e-05]
[1735213419684,0.052251,95802.0,95800.0,0.1]
[1735213420670,9.566e-05,95801.0,95800.0,0.1]
[1735213421385,0.053251,95802.0,95800.0,0.1]
[1735213421683,0.053251,95802.0,95787.0,0.00156573]
[1735213421684,0.0302,95801.0,95787.0,0.00156573]
[1735213421881,0.10460517,95797.0,95787.0,0.00156573]
[1735213422278,0.052258,95789.0,95787.0,0.00156573]
[1735213423988,8.977e-05,95788.0,95787.0,0.00156573]
[1735213424488,0.052258,95789.0,95787.0,0.00156573]
[1735213424682,0.053258,95789.0,95787.0,0.00156573]
[1735213425190,0.001,95789.0,95773.0,0.01030802]
[1735213425386,0.001,95789.0,95771.0,0.052267]
[1735213425387,0.052265,95775.0,95771.0,0.052267]
[1735213425575,4.442e-05,95774.0,95771.0,0.052267]
[1735213425786,4.442e-05,95774.0,95760.0,0.31089126]
[1735213426087,0.052273,95762.0,95760.0,0.31089126]
[1735213426288,0.10460517,95780.0,95760.0,0.31089126]
[1735213426494,0.052269,95769.0,95764.0,0.052271]
[1735213427784,0.053269,95769.0,95764.0,0.052271]
[1735213429584,0.05227,95767.0,95764.0,0.052271]
[1735213429981,0.052271,95765.0,95758.0,0.01025333]
[1735213430201,0.052272,95763.0,95757.0,0.052275]
[1735213430689,0.10460517,95767.0,95748.0,0.0322]
[1735213430891,0.052275,95757.0,95749.0,0.052279]
[1735213431990,0.052277,95754.0,95748.0,0.04276983]
[1735213434191,0.053277,95754.0,95748.0,0.04276983]
[1735213437498,0.052279,95750.0,95748.0,0.04276983]
[1735213438397,0.052282,95745.0,95725.0,0.052293]
[1735213438604,0.052282,95745.0,95731.0,0.0313]
[1735213439102,0.063,95753.0,95709.0,0.052301]
[1735213439294,0.063,95753.0,95711.0,0.0637]
[1735213439295,0.05229,95730.0,95711.0,0.0637]
[1735213439899,0.05229,95730.0,95726.0,0.01065222]
[1735213440197,0.052298,95715.0,95703.0,0.31089126]
[1735213440397,0.15690417,95713.0,95703.0,0.32122368]
[1735213441101,0.10460517,95720.0,95705.0,0.052303]
[1735213441401,0.10460517,95720.0,95709.0,0.052301]
[1735213441598,0.10460517,95720.0,95700.0,0.1]
[1735213441792,0.10460517,95720.0,95710.0,0.0523]
[1735213442586,0.052291,95729.0,95710.0,0.10460517]
[1735213442791,0.10860517,95730.0,95722.0,0.052294]
[1735213442991,0.10460517,95730.0,95722.0,0.052294]
[1735213443191,0.10460517,95730.0,95723.0,0.0325]
[1735213444189,0.10560517,95730.0,95723.0,0.0325]
[1735213444900,0.10560517,95730.0,95718.0,0.01073112]
[1735213445100,0.052292,95727.0,95717.0,0.052297]
[1735213445291,0.052292,95727.0,95701.0,0.0626]
[1735213445491,0.052292,95727.0,95718.0,0.052296]
[1735213445997,0.052292,95727.0,95701.0,0.0626]
[1735213446196,0.21221034,95730.0,95701.0,0.0626]
[1735213446197,0.10460517,95720.0,95708.0,0.052301]
[1735213446397,0.052294,95723.0,95701.0,0.0626]
[1735213446890,0.10460517,95720.0,95712.0,0.052299]
[1735213447087,0.052296,95718.0,95704.0,0.052304]
[1735213447298,0.0309,95729.0,95701.0,0.0325]
[1735213447504,0.001,95723.0,95710.0,0.10460517]
[1735213447799,0.001,95723.0,95713.0,0.10460517]
[1735213448100,0.001,95720.0,95714.0,0.0329]
[1735213448299,0.001,95720.0,95719.0,0.052296]
[1735213448498,0.001,95730.0,95729.0,0.05229]
[1735213448700,0.052284,95741.0,95720.0,0.10460517]
[1735213448898,0.052284,95741.0,95732.0,0.052288]
[1735213450000,0.05282901,95768.0,95721.0,0.0635]
[1735213450001,0.052277,95755.0,95741.0,0.052284]
[1735213450196,0.0326,95767.0,95748.0,0.10460517]
[1735213450503,0.052271,95766.0,95748.0,0.10460517]
[1735213450815,0.0326,95767.0,95748.0,0.10460517]
[1735213451200,0.052276,95756.0,95748.0,0.10460517]
[1735213452706,0.059276,95756.0,95748.0,0.10460517]
[1735213453108,0.068276,95756.0,95748.0,0.10460517]
[1735213453809,0.068276,95756.0,95750.0,0.052279]
[1735213457099,0.068276,95756.0,95748.0,0.11520886]
[1735213457100,0.052277,95754.0,95748.0,0.11520886]
[1735213457309,0.052277,95754.0,95748.0,0.10460517]
[1735213458109,0.059277,95754.0,95748.0,0.10460517]
[1735213459108,0.068277,95754.0,95748.0,0.10460517]
[1735213460003,0.016,95754.0,95745.0,0.01071915]
[1735213460217,0.052279,95751.0,95743.0,0.052282]
[1735213461923,0.015,95754.0,95737.0,0.24823897]
[1735213462123,0.015,95754.0,95736.0,0.01060967]
[1735213462124,0.052285,95740.0,95736.0,0.01060967]
[1735213462853,0.10460517,95750.0,95735.0,0.24823897]
[1735213463032,0.052286,95737.0,95735.0,0.24823897]
[1735213463516,0.052286,95737.0,95728.0,0.00156689]
[1735213463724,0.007,95740.0,95728.0,0.00156689]
[1735213463919,0.052287,95736.0,95728.0,0.00156689]
[1735213464120,0.052287,95735.0,95728.0,0.00156689]
[1735213465423,0.052288,95733.0,95728.0,0.00156689]
[1735213466220,0.006,95735.0,95728.0,0.00156689]
[1735213466536,0.05229,95730.0,95728.0,0.00156689]
[1735213466922,0.0317,95729.0,95728.0,0.00156689]
[1735213469131,0.0347,95729.0,95728.0,0.00156689]
[1735213472217,0.052295,95721.0,95717.0,0.01036061]
[1735213472423,0.052295,95721.0,95714.0,0.24823897]
[1735213473023,0.052295,95721.0,95711.0,0.0523]
[1735213473660,0.0347,95729.0,95711.0,0.0523]
[1735213473661,0.052296,95720.0,95711.0,0.0523]
[1735213473836,0.052296,95720.0,95711.0,0.06298614]
[1735213475432,0.001,95721.0,95711.0,0.06298614]
[1735213475636,0.10560517,95721.0,95711.0,0.01068614]
[1735213475935,0.052299,95713.0,95707.0,0.24823897]
[1735213476442,0.052299,95713.0,95707.0,0.25862973]
[1735213476627,0.0317,95729.0,95707.0,0.31093173]
[1735213476628,0.052296,95719.0,95707.0,0.31093173]
[1735213476832,0.052296,95719.0,95709.0,0.15690617]
[1735213477332,0.001,95713.0,95709.0,0.15690617]
[1735213477531,0.001,95713.0,95709.0,0.052301]
[1735213480139,0.001,95713.0,95703.0,0.04360952]
[1735213480439,0.052303,95707.0,95703.0,0.04360952]
[1735213481630,0.053303,95707.0,95703.0,0.04360952]
[1735213482757,0.052303,95706.0,95703.0,0.04360952]
[1735213484147,0.053303,95706.0,95703.0,0.04360952]
[1735213494747,0.001,95706.0,95703.0,0.04360952]
[1735213494936,0.052304,95704.0,95703.0,0.04360952]
[1735213495992,0.001,95706.0,95703.0,0.04360952]
[1735213496147,0.12441263,95713.0,95711.0,0.0523]
[1735213496448,0.12441263,95713.0,95712.0,0.0313]
[1735213497240,0.052296,95719.0,95713.0,0.052299]
[1735213497451,0.12441263,95722.0,95713.0,0.052299]
[1735213497949,0.12441263,95722.0,95717.0,0.052297]
[1735213498155,0.12441263,95722.0,95718.0,0.052296]
[1735213498776,0.001,95722.0,95718.0,0.23927799]
[1735213499448,0.12441263,95727.0,95720.0,0.052295]
[1735213499754,0.12441263,95727.0,95725.0,0.052292]
[1735213499952,0.12441263,95728.0,95726.0,0.052292]
[1735213501037,0.1562847,95734.0,95733.0,0.052288]
[1735213501449,0.00156721,95744.0,95727.0,0.085191]
[1735213501450,0.002,95728.0,95727.0,0.085191]
[1735213501643,0.1562847,95738.0,95736.0,0.052286]
[1735213501847,0.1562847,95738.0,95737.0,0.0324]
[1735213503449,0.00156721,95744.0,95737.0,0.0324]
[1735213503750,0.004,95738.0,95737.0,0.0324]
[1735213504157,0.01,95738.0,95737.0,0.0324]
[1735213504754,0.004,95738.0,95737.0,0.04286671]
[1735213505548,0.06384921,95744.0,95737.0,0.04286671]
[1735213506270,0.004,95738.0,95737.0,0.04286671]
[1735213506645,0.004,95738.0,95737.0,0.01046671]
[1735213506953,0.01,95738.0,95734.0,0.18698199]
[1735213507350,0.052287,95735.0,95734.0,0.18698199]
[1735213507757,0.052287,95735.0,95733.0,0.18698199]
[1735213509151,0.056287,95735.0,95733.0,0.18698199]
[1735213509353,0.056287,95735.0,95728.0,0.18698199]
[1735213509654,0.052288,95733.0,95728.0,0.18698199]
[1735213510759,0.052288,95733.0,95727.0,0.01035646]
[1735213510760,0.055288,95733.0,95727.0,0.19733845]
[1735213510949,0.055288,95733.0,95727.0,0.18698199]
[1735213512256,0.058288,95733.0,95727.0,0.18698199]
[1735213512660,0.055288,95733.0,95727.0,0.18698199]
[1735213512952,0.054288,95733.0,95727.0,0.18698199]
[1735213513150,0.056288,95733.0,95727.0,0.18698199]
[1735213513558,0.056288,95733.0,95725.0,0.18698199]
[1735213514355,0.004,95733.0,95729.0,0.05229]
[1735213515796,0.003,95733.0,95729.0,0.05229]
[1735213516058,0.004,95733.0,95729.0,0.05229]
[1735213516259,0.006,95733.0,95729.0,0.05229]
[1735213516557,0.052289,95731.0,95723.0,0.052294]
[1735213516863,0.052289,95731.0,95724.0,0.18698199]
[1735213517046,0.052289,95731.0,95725.0,0.052292]
[1735213517654,0.006,95733.0,95726.0,0.052292]
[1735213518270,0.003,95733.0,95726.0,0.052292]
[1735213518559,0.002,95731.0,95726.0,0.052292]
[1735213519150,0.052289,95732.0,95726.0,0.052292]
[1735213519550,0.052289,95732.0,95727.0,0.18698199]
[1735213519757,0.05229,95729.0,95727.0,0.18698199]
[1735213520367,0.0307,95728.0,95727.0,0.18698199]
[1735213521067,0.052291,95727.0,95723.0,0.01023739]
[1735213521304,0.0307,95728.0,95720.0,0.18698199]
[1735213521305,0.052292,95726.0,95720.0,0.18698199]
[1735213521467,0.052293,95725.0,95720.0,0.18698199]
[1735213522167,0.002,95727.0,95720.0,0.18698199]
[1735213522364,0.052295,95722.0,95720.0,0.18698199]
[1735213522785,0.052295,95722.0,95721.0,0.18698199]
[1735213523874,0.052295,95722.0,95721.0,0.13708199]
[1735213524079,0.001,95725.0,95711.0,0.24823897]
[1735213524286,0.052299,95715.0,95711.0,0.24823897]
[1735213524680,0.001,95722.0,95711.0,0.24823897]
[1735213524681,0.052299,95714.0,95711.0,0.24823897]
[1735213525868,0.053299,95714.0,95711.0,0.24823897]
[1735213526074,0.0523,95713.0,95711.0,0.24823897]
[1735213526985,0.052301,95709.0,95708.0,0.24823897]
[1735213528277,0.052301,95709.0,95701.0,0.24823897]
[1735213528771,0.053301,95709.0,95701.0,0.24823897]
[1735213528977,0.001,95709.0,95701.0,0.24823897]
[1735213529178,0.052305,95702.0,95701.0,0.24823897]
[1735213529789,0.052305,95702.0,95700.0,0.34823897]
[1735213531371,0.0648,95701.0,95700.0,0.1]
[1735213534888,0.0658,95701.0,95700.0,0.1]
[1735213535978,0.001,95701.0,95700.0,0.1]
[1735213536582,0.001,95701.0,95700.0,0.132]
[1735213536783,0.001,95701.0,95700.0,0.1628]
[1735213536978,0.1562847,95716.0,95701.0,0.052306]
[1735213537173,0.1562847,95716.0,95715.0,0.052298]
[1735213537991,0.052292,95727.0,95715.0,0.052298]
[1735213538287,0.007,95716.0,95715.0,0.052298]
[1735213538678,0.007,95716.0,95707.0,0.084602]
[1735213539181,0.006,95716.0,95707.0,0.084602]
[1735213539388,0.006,95716.0,95704.0,0.24823897]
[1735213539688,0.10460517,95714.0,95704.0,0.24823897]
[1735213539883,0.006,95716.0,95704.0,0.24823897]